fUST/lending_fUST_20250810
["ID","MTS","AMOUNT","RATE_DAILY","PERIOD"]
[378366031,1754839845980,-500.0,0.00020173,2]
[378366033,1754839845990,-155.52366557,0.00020173,2]
[378366035,1754839846000,-500.0,0.00020173,2]
[378366037,1754839846011,-500.0,0.00020173,2]
[378366039,1754839846022,-500.0,0.00020173,2]
[378366042,1754839846032,-500.0,0.00020173,2]
[378366044,1754839846042,-500.0,0.00020173,2]
[378366046,1754839846052,-500.0,0.00020173,2]
[378366048,1754839846062,-500.0,0.00020173,2]
[378366060,1754839846170,-500.0,0.00020173,2]
[378366062,1754839846180,-500.0,0.00020173,2]
[378366064,1754839846189,-500.0,0.00020173,2]
[378366066,1754839846199,-291.332745,0.00020187,2]
[378366068,1754839846209,-4014.41820569,0.00020193,2]
[378366069,1754839846219,-293.0,0.00020313,2]
[378366071,1754839846230,-460.0,0.00020334,2]
[378366073,1754839846240,-371.87,0.00020335,2]
[378366075,1754839846251,-460.0,0.00020335,2]
[378366077,1754839846262,-151.0,0.00020337,2]
[378366079,1754839846272,-500.0,0.00020337,2]
[378366081,1754839846283,-151.0,0.00020337,2]
[378366083,1754839846294,-460.0,0.00020392,2]
[378366085,1754839846303,-460.0,0.00020392,2]
[378366087,1754839846313,-1240.04,0.00020392,2]
[378366089,1754839846322,-460.0,0.00020392,2]
[378366091,1754839846331,-460.0,0.00020392,2]
[378366093,1754839846341,-1611.0,0.00020392,2]
[378366095,1754839846352,-460.0,0.00020392,2]
[378366097,1754839846361,-460.0,0.00020392,2]
[378366100,1754839846377,-482.87,0.00020392,2]
[378366101,1754839846391,-460.0,0.00020392,2]
[378366103,1754839846400,-460.0,0.00020392,2]
[378366105,1754839846409,-460.0,0.00020392,2]
[378366107,1754839846419,-460.0,0.00020392,2]
[378366109,1754839846429,-460.0,0.00020392,2]
[378366111,1754839846439,-460.0,0.00020392,2]
[378366113,1754839846448,-460.0,0.00020392,2]
[378366115,1754839846457,-4014.41820569,0.00020424,2]
[378366117,1754839846467,-500.0,0.00020434,2]
[378366119,1754839846476,-152.33575119,0.00020434,2]
[378366121,1754839846485,-151.0,0.00020434,2]
[378366123,1754839846494,-151.0,0.00020434,2]
[378366125,1754839846504,-151.0,0.00020434,2]
[378366126,1754839846514,-151.0,0.00020434,2]
[378366129,1754839846524,-151.0,0.00020434,2]
[378366131,1754839846533,-151.0,0.00020434,2]
[378366132,1754839846543,-151.0,0.00020434,2]
[378366134,1754839846552,-360.3363871,0.00020435,2]
[378366136,1754839846561,-460.0,0.00020435,2]
[378366138,1754839846571,-460.0,0.00020435,2]
[378366140,1754839846580,-460.0,0.00020435,2]
[378366142,1754839846597,-460.0,0.00020435,2]
[378366144,1754839846607,-460.0,0.00020435,2]
[378366146,1754839846616,-460.0,0.00020435,2]
[378366148,1754839846625,-460.0,0.00020435,2]
[378366150,1754839846634,-464.13761423,0.00020435,2]
[378366152,1754839846643,-1838.54,0.00020435,2]
[378366154,1754839846652,-460.0,0.00020435,2]
[378366156,1754839846661,-460.0,0.00020435,2]
[378366158,1754839846671,-460.0,0.00020435,2]
[378366160,1754839846680,-460.0,0.00020435,2]
[378366162,1754839846690,-460.0,0.00020435,2]
[378366164,1754839846699,-460.0,0.00020435,2]
[378366166,1754839846709,-460.0,0.00020435,2]
[378366168,1754839846719,-460.0,0.00020435,2]
[378366170,1754839846728,-460.0,0.00020435,2]
[378366172,1754839846738,-460.0,0.00020435,2]
[378366174,1754839846747,-460.0,0.00020435,2]
[378366176,1754839846756,-460.0,0.00020435,2]
[378366178,1754839846766,-460.0,0.00020435,2]
[378366180,1754839846775,-460.0,0.00020435,2]
[378366182,1754839846785,-460.0,0.00020435,2]
[378366184,1754839846795,-460.0,0.00020435,2]
[378366186,1754839846804,-460.0,0.00020435,2]
[378366188,1754839846814,-460.0,0.00020435,2]
[378366190,1754839846823,-460.0,0.00020435,2]
[378366192,1754839846832,-460.0,0.00020435,2]
[378366194,1754839846842,-460.0,0.00020435,2]
[378366196,1754839846851,-460.0,0.00020435,2]
[378366198,1754839846861,-460.0,0.00020435,2]
[378366200,1754839846870,-460.0,0.00020435,2]
[378366202,1754839846880,-463.69505395,0.00020435,2]
[378366204,1754839846889,-460.0,0.00020435,2]
[378366206,1754839846898,-460.0,0.00020435,2]
[378366208,1754839846908,-474.78117092,0.00020435,2]
[378366210,1754839846918,-1086.36,0.00020435,2]
[378366212,1754839846928,-460.0,0.00020435,2]
[378366213,1754839846937,-460.0,0.00020435,2]
[378366214,1754839846948,-460.0,0.00020435,2]
[378366215,1754839846958,-460.0,0.00020435,2]
[378366216,1754839846968,-517.01,0.00020435,2]
[378366217,1754839846978,-151.0,0.00020436,2]
[378366218,1754839846987,-151.0,0.00020436,2]
[378366219,1754839846997,-550.31862162,0.00020436,2]
[378366220,1754839847007,-151.0,0.00020436,2]
[378366221,1754839847019,-151.0,0.00020436,2]
[378366222,1754839847029,-400.98285969,0.00020436,2]
[378366223,1754839847038,-460.0,0.00020436,2]
[378366225,1754839847048,-460.0,0.00020436,2]
[378366226,1754839847057,-460.0,0.00020436,2]
[378366228,1754839847067,-460.0,0.00020436,2]
[378366230,1754839847077,-460.0,0.00020436,2]
[378366233,1754839847087,-983.42,0.00020436,2]
[378366235,1754839847096,-460.0,0.00020436,2]
[378366237,1754839847106,-460.0,0.00020436,2]
[378366239,1754839847115,-460.0,0.00020436,2]
[378366241,1754839847125,-460.0,0.00020436,2]
[378366243,1754839847134,-460.0,0.00020436,2]
[378366245,1754839847144,-460.0,0.00020436,2]
[378366246,1754839847153,-460.0,0.00020436,2]
[378366248,1754839847162,-460.0,0.00020436,2]
[378366250,1754839847172,-460.0,0.00020436,2]
[378366252,1754839847181,-464.40026624,0.00020436,2]
[378366254,1754839847191,-469.92361463,0.00020436,2]
[378366256,1754839847201,-460.0,0.00020436,2]
[378366258,1754839847211,-460.0,0.00020436,2]
[378366261,1754839847221,-460.0,0.00020436,2]
[378366263,1754839847231,-242.51586979,0.00020436,2]
[378366265,1754839847240,-460.0,0.00020436,2]
[378366267,1754839847249,-460.0,0.00020436,2]
[378366269,1754839847259,-428.69616083,0.00020436,2]
[378366271,1754839847274,-460.0,0.00020436,2]
[378366273,1754839847283,-460.0,0.00020436,2]
[378366275,1754839847294,-720.29,0.00020436,2]
[378366277,1754839847304,-460.0,0.00020436,2]
[378366279,1754839847314,-460.0,0.00020436,2]
[378366281,1754839847324,-442.32341299,0.00020436,2]
[378366283,1754839847334,-460.0,0.00020436,2]
[378366285,1754839847344,-460.0,0.00020436,2]
[378366287,1754839847353,-460.0,0.00020436,2]
[378366289,1754839847363,-460.0,0.00020436,2]
[378366291,1754839847372,-460.0,0.00020436,2]
[378366293,1754839847384,-460.0,0.00020436,2]
[378366295,1754839847394,-460.0,0.00020436,2]
[378366297,1754839847403,-1177.54,0.00020436,2]
[378366299,1754839847413,-493.15,0.00020436,2]
[378366301,1754839847425,-460.0,0.00020436,2]
[378366303,1754839847434,-460.0,0.00020436,2]
[378366305,1754839847443,-460.0,0.00020436,2]
[378366307,1754839847453,-460.0,0.00020436,2]
[378366309,1754839847463,-460.0,0.00020436,2]
[378366311,1754839847472,-460.0,0.00020436,2]
[378366313,1754839847481,-460.0,0.00020436,2]
[378366315,1754839847490,-590.99528492,0.00020436,2]
[378366317,1754839847500,-460.0,0.00020436,2]
[378366319,1754839847509,-460.0,0.00020436,2]
[378366321,1754839847520,-460.0,0.00020436,2]
[378366323,1754839847530,-460.0,0.00020436,2]
[378366325,1754839847539,-151.0,0.00020436,2]
[378366327,1754839847549,-443.34552237,0.00020436,2]
[378366329,1754839847559,-460.0,0.00020436,2]
[378366331,1754839847568,-460.0,0.00020436,2]
[378366333,1754839847578,-460.0,0.00020436,2]
[378366335,1754839847587,-460.0,0.00020436,2]
[378366337,1754839847597,-900.31,0.00020436,2]
[378366339,1754839847606,-460.0,0.00020436,2]
[378366341,1754839847616,-460.0,0.00020436,2]
[378366343,1754839847625,-460.0,0.00020436,2]
[378366345,1754839847634,-204.51895134,0.00020437,2]
[378366347,1754839847644,-247.10890945,0.00020437,2]
[378366349,1754839847653,-151.0,0.00020437,2]
[378366351,1754839847662,-460.0,0.00020437,2]
[378366353,1754839847671,-460.0,0.00020437,2]
[378366355,1754839847682,-581.40576508,0.00020437,2]
[378366357,1754839847691,-464.59537449,0.00020437,2]
[378366359,1754839847701,-463.09503539,0.00020437,2]
[378366361,1754839847712,-460.0,0.00020437,2]
[378366363,1754839847721,-460.0,0.00020437,2]
[378366365,1754839847731,-460.0,0.00020437,2]
[378366367,1754839847739,-460.0,0.00020437,2]
[378366369,1754839847748,-460.0,0.00020437,2]
[378366371,1754839847758,-460.0,0.00020437,2]
[378366373,1754839847770,-460.0,0.00020437,2]
[378366375,1754839847779,-460.0,0.00020437,2]
[378366377,1754839847788,-469.65964667,0.00020437,2]
[378366379,1754839847797,-465.97400487,0.00020437,2]
[378366381,1754839847806,-478.33011525,0.00020437,2]
[378366383,1754839847816,-460.0,0.00020437,2]
[378366385,1754839847825,-460.0,0.00020437,2]
[378366387,1754839847834,-460.0,0.00020437,2]
[378366389,1754839847843,-467.81242707,0.00020437,2]
[378366390,1754839847852,-306.01891526,0.00020437,2]
[378366391,1754839847861,-450.0,0.00020437,2]
[378366392,1754839847871,-460.0,0.00020437,2]
[378366393,1754839847880,-460.0,0.00020437,2]
[378366394,1754839847889,-460.0,0.00020437,2]
[378366395,1754839847898,-460.0,0.00020437,2]
[378366396,1754839847907,-460.0,0.00020437,2]
[378366397,1754839847916,-460.0,0.00020437,2]
[378366398,1754839847926,-460.0,0.00020437,2]
[378366399,1754839847935,-170.51,0.00020437,2]
[378366400,1754839847944,-460.0,0.00020437,2]
[378366401,1754839847953,-460.0,0.00020437,2]
[378366402,1754839847962,-151.0,0.00020437,2]
[378366403,1754839847972,-460.0,0.00020437,2]
[378366404,1754839847981,-460.0,0.00020437,2]
[378366405,1754839847991,-460.0,0.00020437,2]
[378366406,1754839848000,-460.0,0.00020437,2]
[378366407,1754839848010,-2749.4,0.00020437,2]
[378366408,1754839848022,-460.0,0.00020437,2]
[378366409,1754839848032,-460.0,0.00020437,2]
[378366410,1754839848041,-583.48,0.00020437,2]
[378366411,1754839848050,-460.0,0.00020438,2]
[378366412,1754839848060,-581.17,0.00020438,2]
[378366413,1754839848070,-621.59,0.00020438,2]
[378366414,1754839848079,-927.13,0.00020438,2]
[378366415,1754839848089,-460.0,0.00020438,2]
[378366416,1754839848099,-462.61045185,0.00020438,2]
[378366417,1754839848108,-900.31,0.00020438,2]
[378366418,1754839848118,-460.0,0.00020438,2]
[378366419,1754839848127,-461.27611889,0.00020438,2]
[378366420,1754839848136,-861.26,0.00020438,2]
[378366421,1754839848146,-1053.41,0.00020439,2]
[378366422,1754839848156,-460.0,0.0002044,2]
[378366423,1754839848166,-355.0,0.00020488,2]
[378366424,1754839848175,-7465.60459248,0.00020504,2]
[378366425,1754839848184,-460.0,0.00020609,2]
[378366426,1754839848194,-151.0,0.00020611,2]
[378366427,1754839848204,-500.0,0.00020611,2]
[378366428,1754839848214,-4014.41820569,0.00020654,2]
[378366429,1754839848223,-195.69,0.00020658,2]
[378366430,1754839848233,-460.0,0.00020666,2]
[378366431,1754839848242,-1240.04,0.00020666,2]
[378366432,1754839848252,-1611.0,0.00020666,2]
[378366433,1754839848262,-460.0,0.00020666,2]
[378366434,1754839848272,-503.78,0.00020666,2]
[378366435,1754839848281,-460.0,0.00020666,2]
[378366436,1754839848291,-460.0,0.00020666,2]
[378366437,1754839848507,-460.0,0.00020666,2]
[378366438,1754839848518,-460.0,0.00020666,2]
[378366439,1754839848527,-500.0,0.00020708,2]
[378366440,1754839848537,-151.0,0.00020708,2]
[378366441,1754839848547,-151.0,0.00020708,2]
[378366442,1754839848556,-151.0,0.00020708,2]
[378366443,1754839848566,-151.0,0.00020708,2]
[378366444,1754839848575,-151.0,0.00020708,2]
[378366445,1754839848584,-460.0,0.00020709,2]
[378366446,1754839848594,-460.0,0.00020709,2]
[378366447,1754839848604,-460.0,0.00020709,2]
[378366448,1754839848614,-1838.54,0.00020709,2]
[378366449,1754839848623,-460.0,0.00020709,2]
[378366450,1754839848633,-460.0,0.00020709,2]
[378366451,1754839848642,-460.0,0.00020709,2]
[378366452,1754839848652,-357.1399445,0.00020709,2]
[378366453,1754839848661,-460.0,0.00020709,2]
[378366454,1754839848670,-203.822069,0.00020709,2]
[378366455,1754839848680,-151.0,0.00020709,2]
[378366456,1754839848690,-460.0,0.00020709,2]
[378366457,1754839848699,-460.0,0.00020709,2]
[378366458,1754839848807,-460.0,0.00020709,2]
[378366459,1754839848817,-460.0,0.00020709,2]
[378366460,1754839848826,-460.0,0.00020709,2]
[378366461,1754839848836,-900.31,0.00020709,2]
[378366462,1754839848846,-1086.36,0.00020709,2]
[378366463,1754839848855,-460.0,0.00020709,2]
[378366464,1754839848865,-460.0,0.00020709,2]
[378366465,1754839848875,-460.0,0.00020709,2]
[378366466,1754839848884,-517.01,0.00020709,2]
[378366467,1754839848893,-151.0,0.0002071,2]
[378366468,1754839848903,-151.0,0.0002071,2]
[378366469,1754839848912,-983.42,0.0002071,2]
[378366470,1754839848923,-720.29,0.0002071,2]
[378366471,1754839848932,-460.0,0.0002071,2]
[378366472,1754839848942,-460.0,0.0002071,2]
[378366473,1754839848951,-460.0,0.0002071,2]
[378366474,1754839848961,-460.0,0.0002071,2]
[378366475,1754839848971,-1177.54,0.0002071,2]
[378366476,1754839848980,-460.0,0.0002071,2]
[378366477,1754839848990,-460.0,0.0002071,2]
[378366478,1754839849000,-468.79,0.0002071,2]
[378366479,1754839849009,-460.0,0.0002071,2]
[378366480,1754839849019,-460.0,0.00020711,2]
[378366481,1754839849029,-460.0,0.00020711,2]
[378366482,1754839849039,-460.0,0.00020711,2]
[378366483,1754839849048,-460.0,0.00020711,2]
[378366484,1754839849059,-460.0,0.00020711,2]
[378366485,1754839849069,-460.0,0.00020711,2]
[378366486,1754839849078,-460.0,0.00020711,2]
[378366487,1754839849088,-460.0,0.00020711,2]
[378366488,1754839849097,-460.0,0.00020711,2]
[378366489,1754839849106,-460.0,0.00020711,2]
[378366490,1754839849116,-460.0,0.00020711,2]
[378366491,1754839849126,-2749.4,0.00020711,2]
[378366492,1754839849136,-583.48,0.00020711,2]
[378366493,1754839849145,-268.31469389,0.00020712,2]
[378366494,1754839849155,-581.17,0.00020712,2]
[378366495,1754839849164,-621.59,0.00020712,2]
[378366496,1754839849174,-927.13,0.00020712,2]
[378366497,1754839849183,-900.31,0.00020712,2]
[378366498,1754839849193,-460.0,0.00020712,2]
[378366499,1754839849203,-861.26,0.00020712,2]
[378366500,1754839849213,-1053.41,0.00020713,2]
[378366501,1754839849223,-900.31,0.00020714,2]
[378366502,1754839849233,-2919.77656252,0.00020715,2]
[378366503,1754839849242,-1759.0,0.00020715,2]
[378366504,1754839849252,-1759.0,0.00020715,2]
[378366505,1754839849262,-1759.0,0.00020715,2]
[378366506,1754839849274,-325.0,0.00020715,2]
[378366507,1754839849284,-325.0,0.00020715,2]
[378366508,1754839849294,-325.0,0.00020715,2]
[378366509,1754839849303,-325.0,0.00020715,2]
[378366510,1754839849312,-325.0,0.00020715,2]
[378366511,1754839849322,-302.44549568,0.00020719,2]
[378366512,1754839849331,-500.0,0.00020721,2]
[378366513,1754839849341,-1000.0,0.00020721,2]
[378366514,1754839849351,-686.33809383,0.00020721,2]
[378366515,1754839849360,-491.36391457,0.00020721,2]
[378366516,1754839849370,-500.0,0.00020721,2]
[378366517,1754839849384,-1004.93492331,0.00020721,2]
[378366518,1754839849394,-1000.0,0.00020721,2]
[378366519,1754839849403,-565.9898197,0.00020721,2]
[378366520,1754839849412,-1000.0,0.00020721,2]
[378366521,1754839849423,-1000.0,0.00020721,2]
[378366522,1754839849432,-1000.0,0.00020721,2]
[378366523,1754839849442,-500.0,0.00020721,2]
[378366524,1754839849451,-1000.0,0.00020721,2]
[378366525,1754839849461,-502.00360691,0.00020721,2]
[378366526,1754839849470,-1000.0,0.00020721,2]
[378366527,1754839849479,-1000.0,0.00020721,2]
[378366528,1754839849488,-552.49875831,0.00020721,2]
[378366529,1754839849498,-500.0,0.00020721,2]
[378366530,1754839849507,-505.48273847,0.00020721,2]
[378366531,1754839849519,-500.0,0.00020721,2]
[378366532,1754839849528,-500.0,0.00020737,2]
[378366533,1754839849537,-500.0,0.00020737,2]
[378366534,1754839849546,-158.43356435,0.00020737,2]
[378366535,1754839849557,-500.0,0.00020737,2]
[378366536,1754839849566,-500.0,0.00020737,2]
[378366537,1754839849575,-500.0,0.00020737,2]
[378366538,1754839849584,-500.21872809,0.00020737,2]
[378366539,1754839849595,-460.0,0.00020883,2]
[378366540,1754839849605,-4014.41820569,0.00020884,2]
[378366542,1754839849614,-460.0,0.0002094,2]
[378366544,1754839849624,-1240.04,0.0002094,2]
[378366546,1754839849633,-1611.0,0.0002094,2]
[378366548,1754839849643,-460.0,0.0002094,2]
[378366550,1754839849652,-337.44,0.0002094,2]
[378366552,1754839849661,-460.0,0.0002094,2]
[378366554,1754839849670,-460.0,0.0002094,2]
[378366556,1754839849680,-200.0,0.0002096,15]
[378366558,1754839849689,-300.0,0.0002096,15]
[378366560,1754839849698,-500.0,0.00020982,2]
[378366562,1754839849707,-198.0,0.00020982,2]
[378366564,1754839849716,-151.0,0.00020982,2]
[378366565,1754839849725,-198.0,0.00020982,2]
[378366567,1754839849735,-198.0,0.00020982,2]
[378366569,1754839849744,-151.0,0.00020982,2]
[378366571,1754839849753,-1838.54,0.00020983,2]
[378366573,1754839849763,-523.55,0.00020983,2]
[378366575,1754839849772,-1086.36,0.00020983,2]
[378366577,1754839849781,-460.0,0.00020983,2]
[378366579,1754839849791,-517.01,0.00020983,2]
[378366581,1754839849800,-151.0,0.00020984,2]
[378366583,1754839849810,-288.76633868,0.00020984,2]
[378366585,1754839849819,-983.42,0.00020984,2]
[378366588,1754839849829,-720.29,0.00020984,2]
[378366590,1754839849839,-460.0,0.00020984,2]
[378366592,1754839849849,-460.0,0.00020984,2]
[378366593,1754839849859,-1177.54,0.00020984,2]
[378366595,1754839849868,-460.0,0.00020984,2]
[378366597,1754839849879,-460.0,0.00020984,2]
[378366599,1754839849888,-460.0,0.00020984,2]
[378366601,1754839849898,-466.54363822,0.00020985,2]
[378366604,1754839849907,-460.0,0.00020985,2]
[378366606,1754839849918,-460.0,0.00020985,2]
[378366608,1754839849928,-460.0,0.00020985,2]
[378366610,1754839849937,-460.0,0.00020985,2]
[378366611,1754839849946,-460.0,0.00020985,2]
[378366613,1754839849955,-460.0,0.00020985,2]
[378366615,1754839849964,-460.0,0.00020985,2]
[378366617,1754839849974,-2749.4,0.00020985,2]
[378366619,1754839849983,-900.31,0.00020985,2]
[378366621,1754839849992,-583.48,0.00020985,2]
[378366623,1754839850001,-581.17,0.00020986,2]
[378366625,1754839850011,-621.59,0.00020986,2]
[378366627,1754839850022,-927.13,0.00020986,2]
[378366630,1754839850032,-460.0,0.00020986,2]
[378366632,1754839850041,-861.26,0.00020986,2]
[378366634,1754839850051,-1053.41,0.00020987,2]
[378366636,1754839850061,-151.0,0.00021,4]
[378366638,1754839850070,-460.0,0.00021157,2]
[378366640,1754839850079,-318.7360465,0.00021177,2]
[378366642,1754839850088,-1273.6692418,0.00021177,2]
[378366644,1754839850097,-460.0,0.00021213,2]
[378366646,1754839850106,-1240.04,0.00021213,2]
[378366648,1754839850115,-1611.0,0.00021213,2]
[378366650,1754839850125,-460.0,0.00021213,2]
[378366652,1754839850134,-460.0,0.00021213,2]
[378366654,1754839850143,-460.0,0.00021213,2]
[378366655,1754839850153,-900.31,0.00021255,2]
[378366657,1754839850162,-504.98618503,0.00021256,2]
[378366660,1754839850171,-219.63285556,0.00021256,2]
[378366661,1754839850181,-245.0,0.00021256,2]
[378366664,1754839850190,-1838.54,0.00021257,2]
[378366666,1754839850199,-1086.36,0.00021257,2]
[378366667,1754839850209,-318.70747409,0.00021257,2]
[378366670,1754839850218,-517.01,0.00021257,2]
[378366672,1754839850227,-160.0,0.00021257,2]
[378366673,1754839850236,-151.0,0.00021258,2]
[378366676,1754839850246,-983.42,0.00021258,2]
[378366678,1754839850255,-720.29,0.00021258,2]
[378366679,1754839850265,-460.0,0.00021258,2]
[378366682,1754839850276,-460.0,0.00021258,2]
[378366684,1754839850285,-226.388925,0.00021258,2]
[378366685,1754839850295,-1177.54,0.00021258,2]
[378366687,1754839850306,-460.0,0.00021258,2]
[378366690,1754839850316,-576.58132968,0.00021258,2]
[378366692,1754839850325,-151.0,0.00021258,2]
[378366694,1754839850334,-460.0,0.00021258,2]
[378366696,1754839850343,-460.0,0.00021259,2]
[378366698,1754839850352,-460.0,0.00021259,2]
[378366700,1754839850361,-460.0,0.00021259,2]
[378366701,1754839850371,-460.0,0.00021259,2]
[378366704,1754839850383,-440.5322303,0.00021259,2]
[378366706,1754839850392,-310.26403599,0.00021259,2]
[378366707,1754839850401,-2749.4,0.00021259,2]
[378366709,1754839850410,-900.31,0.00021259,2]
[378366711,1754839850420,-583.48,0.00021259,2]
[378366714,1754839850430,-215.44987349,0.00021259,2]
[378366715,1754839850439,-12668.57659669,0.00021259,2]
[378366718,1754839850449,-461.62346162,0.00021259,2]
[378366720,1754839850459,-160.0,0.00021259,2]
[378366722,1754839850468,-527.86640923,0.00021259,2]
[378366723,1754839850477,-216.64838636,0.00021259,2]
[378366725,1754839850487,-160.0,0.00021259,2]
[378366727,1754839850496,-312.16666667,0.00021259,2]
[378366730,1754839850506,-843.0869304,0.00021259,2]
[378366731,1754839850515,-231.96268195,0.00021259,2]
[378366734,1754839850524,-581.17,0.0002126,2]
[378366735,1754839850533,-621.59,0.0002126,2]
[378366738,1754839850543,-927.13,0.0002126,2]
[378366740,1754839850553,-460.0,0.0002126,2]
[378366742,1754839850562,-861.26,0.0002126,2]
[378366744,1754839850571,-160.0,0.0002126,2]
[378366746,1754839850582,-160.0,0.0002126,2]
[378366748,1754839850591,-160.0,0.0002126,2]
[378366750,1754839850600,-160.0,0.0002126,2]
[378366752,1754839850609,-160.0,0.0002126,2]
[378366754,1754839850618,-160.0,0.0002126,2]
[378366756,1754839850627,-1053.41,0.00021261,2]
[378366757,1754839850636,-1000.0,0.00021268,2]
[378366758,1754839850646,-500.0,0.00021268,2]
[378366759,1754839850655,-500.0,0.00021268,2]
[378366760,1754839850663,-500.0,0.00021268,2]
[378366761,1754839850672,-1000.0,0.00021268,2]
[378366762,1754839850682,-1500.0,0.00021268,2]
[378366763,1754839850691,-1004.25892979,0.00021285,2]
[378366764,1754839850700,-500.0,0.00021285,2]
[378366765,1754839850708,-1000.0,0.00021285,2]
[378366766,1754839850718,-372.91866161,0.00021285,2]
[378366767,1754839850727,-1000.0,0.00021285,2]
[378366768,1754839850736,-151.0,0.000213,4]
[378366770,1754839850745,-995.65444663,0.00021301,2]
[378366771,1754839850755,-160.0,0.00021429,2]
[378366772,1754839850764,-460.0,0.00021431,2]
[378366774,1754839850773,-900.31,0.00021433,2]
[378366776,1754839850783,-460.0,0.00021487,2]
[378366778,1754839850793,-1240.04,0.00021487,2]
[378366780,1754839850802,-1611.0,0.00021487,2]
[378366782,1754839850811,-460.0,0.00021487,2]
[378366784,1754839850820,-460.0,0.00021487,2]
[378366786,1754839850829,-460.0,0.00021487,2]
[378366788,1754839850839,-151.0,0.000215,3]
[378366790,1754839850848,-928.07931519,0.00021502,2]
[378366792,1754839850857,-1838.54,0.00021531,2]
[378366794,1754839850866,-1086.36,0.00021531,2]
[378366796,1754839850876,-517.01,0.00021531,2]
[378366798,1754839850886,-198.0,0.00021532,2]
[378366800,1754839850895,-983.42,0.00021532,2]
[378366802,1754839850904,-720.29,0.00021532,2]
[378366814,1754839851009,-460.0,0.00021532,2]
[378366816,1754839851021,-460.0,0.00021532,2]
[378366818,1754839851030,-173.200278,0.00021532,2]
[378366820,1754839851039,-1177.54,0.00021532,2]
[378366822,1754839851049,-460.0,0.00021532,2]
[378366824,1754839851058,-341.083336,0.00021532,2]
[378366826,1754839851068,-341.083336,0.00021532,2]
[378366828,1754839851078,-460.0,0.00021532,2]
[378366830,1754839851087,-460.0,0.00021533,2]
[378366832,1754839851096,-460.0,0.00021533,2]
[378366834,1754839851106,-460.0,0.00021533,2]
[378366836,1754839851115,-460.0,0.00021533,2]
[378366838,1754839851123,-2749.4,0.00021533,2]
[378366840,1754839851132,-583.48,0.00021533,2]
[378366842,1754839851142,-581.17,0.00021534,2]
[378366844,1754839851151,-621.59,0.00021534,2]
[378366846,1754839851161,-927.13,0.00021534,2]
[378366848,1754839851170,-900.31,0.00021534,2]
[378366850,1754839851180,-460.0,0.00021534,2]
[378366852,1754839851190,-861.26,0.00021534,2]
[378366854,1754839851199,-1053.41,0.00021535,2]
[378366856,1754839851208,-154.1429854,0.00021536,2]
[378366858,1754839851217,-252.91603327,0.00021597,2]
[378366860,1754839851227,-151.0,0.000216,4]
[378366862,1754839851236,-1000.0,0.0002168,2]
[378366864,1754839851246,-151.0,0.000217,4]
[378366866,1754839851255,-460.0,0.00021705,2]
[378366868,1754839851266,-460.0,0.00021761,2]
[378366870,1754839851275,-1240.04,0.00021761,2]
[378366872,1754839851284,-1611.0,0.00021761,2]